bitfinex/quotes_SOLUSD_20240615
["timestamp","ask_amount","ask_price","bid_price","bid_amount"]
[1718440985252,48.3113,144.13,144.06,0.51]
[1718440985628,2.5673,144.12,144.06,0.51]
[1718440986349,6.5792,144.17,144.07,0.17]
[1718440986553,5.66,144.13,144.07,5.83]
[1718440986732,5.66,144.13,144.08,26.17]
[1718440986931,7.7,144.16,144.08,5.66]
[1718440987154,15.3998,144.16,144.09,20.17]
[1718440987339,7.7,144.16,144.09,20.17]
[1718440987540,5.66,144.13,144.09,20.17]
[1718440990648,5.66,144.13,144.1,0.34]
[1718440991040,25.6648,144.17,144.1,0.34]
[1718440991244,5.66,144.14,144.1,0.34]
[1718440991758,23.0983,144.17,144.1,0.34]
[1718440991944,5.66,144.14,144.1,0.34]
[1718440994256,5.1335,144.15,144.09,20.17]
[1718440994454,5.66,144.13,144.09,0.17]
[1718440994654,5.66,144.12,144.08,20.51]
[1718440994853,5.66,144.12,144.08,0.51]
[1718440995935,5.66,144.13,144.08,0.51]
[1718440996160,5.66,144.13,144.08,20.51]
[1718440996548,7.6994,144.17,144.09,0.17]
[1718440996751,5.66,144.13,144.09,0.17]
[1718440996951,5.66,144.14,144.09,0.17]
[1718440997156,0.33333333,144.12,144.09,0.17]
[1718440999375,0.33333333,144.12,144.09,1.55756221]
[1718440999676,0.33333333,144.12,144.1,0.51]
[1718441004554,0.33333333,144.12,144.11,15.6904]
[1718441004764,1e-08,144.12,144.11,141.8604]
[1718441004951,5.66,144.18,144.12,0.17]
[1718441005150,5.66,144.18,144.12,26.34]
[1718441005468,25.6599,144.2,144.12,26.34]
[1718441005782,5.66,144.18,144.13,1.38545676]
[1718441005982,5.66,144.18,144.14,0.17]
[1718441006675,25.6593,144.2,144.14,0.17]
[1718441006971,5.66,144.18,144.14,0.17]
[1718441008373,5.66,144.18,144.13,0.51]
[1718441008542,5.66,144.18,144.13,0.34]
[1718441009452,5.66,144.17,144.13,0.34]
[1718441009651,5.66,144.16,144.13,0.34]
[1718441010080,5.66,144.16,144.12,20.17]
[1718441010379,7.6992,144.17,144.12,20.17]
[1718441010581,5.66,144.15,144.12,20.17]
[1718441011647,5.66,144.15,144.12,20.0]
[1718441011848,5.66,144.13,144.12,20.0]
[1718441012058,5.66,144.13,144.11,15.5204]
[1718441013173,5.66,144.16,144.12,20.17]
[1718441013360,5.66,144.16,144.13,0.17]
[1718441018359,5.66,144.15,144.13,0.17]
[1718441018560,5.66,144.14,144.12,20.0]
[1718441018767,5.66,144.15,144.12,20.0]
[1718441020262,5.66,144.14,144.12,20.0]
[1718441020587,5.66,144.14,144.11,15.5204]
[1718441024790,25.6631,144.18,144.11,15.5204]
[1718441024987,2.5663,144.18,144.11,15.5204]
[1718441025170,5.66,144.15,144.11,15.5204]
[1718441029083,7.6986,144.18,144.11,15.5204]
[1718441029414,5.66,144.15,144.11,15.5204]
[1718441032269,22.64,144.2,144.12,0.17]
[1718441032477,5.66,144.17,144.12,20.68]
[1718441032874,5.66,144.16,144.12,20.68]
[1718441034311,5.66,144.16,144.12,20.17]
[1718441034492,5.66,144.16,144.12,20.0]
[1718441043808,5.66,144.17,144.12,20.0]
[1718441046309,7.6979,144.2,144.13,0.17]
[1718441046506,5.66,144.17,144.13,0.17]
[1718441050415,5.66,144.17,144.12,20.0]
[1718441050416,5.66,144.14,144.12,20.0]
[1718441050716,5.66,144.14,144.11,15.5204]
[1718441052292,5.66,144.15,144.11,15.5204]
[1718441053304,5.66,144.14,144.11,15.5204]
[1718441053502,5.66,144.13,144.1,0.17]
[1718441055324,5.66,144.13,144.09,0.51]
[1718441056930,5.66,144.14,144.09,0.51]
[1718441058522,2.5665,144.17,144.09,0.51]
[1718441058723,5.66,144.14,144.09,0.51]
[1718441063733,2.5665,144.16,144.09,0.51]
[1718441063925,5.66,144.14,144.09,0.51]
[1718441068640,5.66,144.13,144.09,0.51]
[1718441078134,5.66,144.12,144.08,20.0]
[1718441079036,5.66,144.11,144.07,22.1172]
[1718441081425,5.66,144.11,144.07,15.6634]
[1718441082050,5.66,144.1,144.07,15.6634]
[1718441084358,5.66,144.12,144.07,15.6634]
[1718441084527,25.6245483,144.17,144.08,20.51]
[1718441084732,5.66,144.14,144.08,26.17]
[1718441086757,5.66,144.13,144.08,20.51]
[1718441090361,7.6999,144.16,144.08,20.51]
[1718441090664,5.66,144.13,144.08,20.51]
[1718441092059,16.4558,144.22,144.09,6.4801]
[1718441092265,5.66,144.16,144.1,26.17]
[1718441093050,5.66,144.15,144.1,20.51]
[1718441095349,2.5663,144.18,144.1,20.51]
[1718441095545,5.66,144.16,144.1,20.51]
[1718441095951,2.5663,144.18,144.1,20.51]
[1718441096168,5.66,144.16,144.1,20.51]
[1718441098276,5.66,144.15,144.1,20.51]
[1718441102271,5.66,144.14,144.1,20.51]
[1718441103560,5.66,144.14,144.1,20.17]
[1718441103763,5.66,144.13,144.1,20.0]
[1718441104585,5.66,144.13,144.09,7.86774857]
[1718441104757,5.66,144.12,144.1,1.38755227]
[1718441104961,5.66,144.13,144.1,1.38755227]
[1718441105470,5.66,144.13,144.07,15.6634]
[1718441105779,5.66,144.11,144.08,20.0]
[1718441106271,5.66,144.11,144.07,15.6634]
[1718441107654,5.66,144.12,144.07,15.6634]
[1718441107855,5.66,144.12,144.07,21.3234]
[1718441108976,5.66,144.12,144.07,15.6634]
[1718441111374,5.66,144.12,144.07,21.3234]
[1718441111779,7.23378371,144.2,144.08,0.17]
[1718441111970,7.23378371,144.2,144.1,21.7927]
[1718441111971,5.66,144.16,144.1,21.7927]
[1718441112284,5.66,144.17,144.11,26.17]
[1718441112491,0.33333335,144.15,144.11,26.17]
[1718441113591,0.33333335,144.15,144.11,20.51]
[1718441113757,5.99333335,144.15,144.11,20.51]
[1718441115670,0.33333335,144.15,144.11,20.51]
[1718441115884,0.33333335,144.15,144.11,26.17]
[1718441116590,0.33333335,144.15,144.11,20.51]
[1718441117158,0.33333335,144.15,144.12,0.17]
[1718441117387,0.33333335,144.15,144.12,0.88664029]
[1718441117607,0.33333335,144.15,144.13,0.51]
[1718441117903,0.33333335,144.15,144.13,0.17]
[1718441118077,5.99333335,144.15,144.12,0.51]
[1718441119001,0.33333335,144.15,144.12,0.51]
[1718441119987,0.33333335,144.15,144.12,0.17]
[1718441121990,0.33333335,144.15,144.12,0.51]
[1718441122793,0.33333335,144.15,144.13,0.17]
[1718441123088,0.33333335,144.15,144.13,5.83]
[1718441123317,0.33333335,144.15,144.14,0.51]
[1718441132000,0.33333335,144.15,144.13,0.17]
[1718441132001,0.33333335,144.15,144.12,5.66]
[1718441132208,0.33333335,144.15,144.11,25.83]
[1718441132517,0.33333335,144.15,144.12,0.51]
[1718441134724,0.33333335,144.15,144.12,0.17]
[1718441135217,0.33333335,144.15,144.11,20.0]
[1718441136617,0.33333335,144.15,144.12,1.89744377]
[1718441139410,0.33333335,144.15,144.12,0.51]
[1718441143046,5.99333335,144.15,144.12,0.17]
[1718441145440,0.33333335,144.15,144.12,0.17]
[1718441147930,0.33333335,144.15,144.12,6.17]
[1718441148131,0.33333335,144.15,144.13,1.38724925]
[1718441153230,0.33333335,144.15,144.12,0.51]
[1718441161946,5.66,144.14,144.07,14.41708513]
[1718441162157,10.7949,144.12,144.08,1.38749033]
[1718441162369,15.9799,144.16,144.06,21.95971548]
[1718441162370,5.66,144.11,144.06,5.56481548]
[1718441162655,5.66,144.11,144.05,100.0]
[1718441162946,2.5671,144.13,144.04,8.75708513]
[1718441162947,2.5673,144.12,144.04,8.75708513]
[1718441163138,18.5474,144.11,144.04,8.75708513]
[1718441163653,15.9799,144.11,144.02,5.66]
[1718441163823,15.9799,144.11,144.02,11.14726291]
[1718441164958,15.9799,144.11,144.03,0.34]
[1718441165142,15.9799,144.11,144.04,0.51]
[1718441165448,15.9799,144.11,144.05,0.17]
[1718441168456,15.9799,144.11,144.04,0.34]
[1718441168627,5.66,144.08,144.04,0.34]
[1718441172257,5.66,144.07,144.04,0.34]
[1718441172444,5.66,144.07,144.04,0.17]
[1718441172638,5.66,144.07,144.04,20.0]
[1718441172836,5.66,144.07,144.02,20.0]
[1718441172837,5.66,144.05,144.02,20.0]
[1718441173037,15.9799,144.06,143.97,357.5]
[1718441173249,15.9799,144.06,143.97,100.0]
[1718441173250,5.66,144.03,143.97,100.0]
[1718441173544,5.66,144.03,143.97,105.66]
[1718441174330,5.66,144.03,143.98,5.83]
[1718441174551,15.9799,144.06,143.99,0.51]
[1718441174754,5.66,144.04,143.99,0.51]
[1718441176763,15.9799,144.06,144.01,5.66]
[1718441176964,15.9799,144.06,144.02,0.51]
[1718441177661,21.6399,144.06,144.02,0.51]
[1718441178851,5.66,144.05,144.02,0.51]
[1718441179764,5.66,144.05,144.01,20.0]
[1718441179765,5.66,144.05,144.0,20.17]
[1718441180063,5.66,144.05,144.01,0.51]
[1718441180265,15.9799,144.06,144.01,0.51]
[1718441180441,5.66,144.04,144.01,0.51]
[1718441180642,5.66,144.04,144.01,20.51]
[1718441180867,5.66,144.04,144.01,0.51]
[1718441181546,5.66,144.04,143.99,20.0]
[1718441181747,5.66,144.04,144.0,0.34]
[1718441181973,5.66,144.03,143.99,20.0]
[1718441182143,5.66,144.03,143.98,20.0]
[1718441183143,21.6399,144.06,143.98,25.66]
[1718441183144,15.9799,144.06,143.98,25.66]
[1718441183447,5.66,144.04,144.0,0.17]
[1718441183769,5.66,144.05,144.0,21.5584544]
[1718441183966,5.66,144.05,144.01,0.51]
[1718441185486,15.9799,144.06,144.01,0.51]
[1718441185487,5.66,144.04,144.01,0.17]
[1718441185637,5.66,144.04,144.0,20.0]
[1718441185845,15.9799,144.06,144.01,0.51]
[1718441186150,21.6399,144.06,144.01,1.89837579]
[1718441186350,21.6399,144.06,144.01,1.55837579]
[1718441186652,21.6399,144.06,144.0,20.0]
[1718441186653,5.66,144.04,144.0,20.0]
[1718441186972,5.66,144.06,144.01,0.17]
[1718441187174,5.66,144.06,144.0,0.34]
[1718441187346,5.66,144.05,144.01,0.34]
[1718441188062,6.2684,144.08,144.01,0.34]
[1718441188243,5.66,144.06,144.01,0.34]
[1718441188677,5.66,144.05,144.01,0.34]
[1718441189645,5.66,144.04,144.01,0.34]
[1718441190271,5.66,144.03,143.99,20.0]
[1718441190648,5.66,144.03,143.98,20.0]
[1718441190845,5.66,144.03,143.97,5.66]
[1718441191580,5.66,144.03,143.98,0.34]
[1718441191756,5.66,144.03,143.99,0.17]
[1718441192282,5.66,144.03,143.99,20.17]
[1718441192466,5.66,144.03,144.0,0.17]
[1718441193161,16.0036,144.05,143.99,0.34]
[1718441193677,16.0036,144.05,143.98,0.17]
[1718441193875,16.0036,144.05,143.98,0.51]
[1718441194244,16.0036,144.05,143.98,1.89627175]
[1718441194490,18.5722,144.05,143.98,0.51]
[1718441194787,5.66,144.01,143.98,0.34]
[1718441196458,5.66,144.01,143.97,20.0]
[1718441197973,16.0036,144.05,143.98,0.34]
[1718441198175,5.66,144.02,143.99,0.34]
[1718441198884,16.0036,144.05,143.99,0.34]
[1718441199183,5.66,144.06,144.0,106.0]
[1718441199479,5.66,144.06,144.01,20.34]
[1718441199690,5.66,144.06,144.02,0.17]
[1718441199976,5.66,144.03,144.01,20.0]
[1718441200193,5.66,144.02,143.99,20.0]
[1718441200366,5.66,144.02,144.0,0.17]
[1718441200568,5.66,144.01,143.96,100.0]
[1718441200758,5.66,144.0,143.97,20.0]
[1718441201171,5.66,144.01,143.97,20.0]
[1718441201363,5.66,144.0,143.95,20.0]
[1718441201894,5.66,144.02,143.97,0.17]
[1718441202180,5.66,144.02,143.97,20.51]
[1718441202393,5.66,144.01,143.97,20.51]
[1718441202695,5.66,144.01,143.97,0.51]
[1718441204182,5.66,144.01,143.96,20.17]
[1718441204183,5.66,144.01,143.96,20.0]
[1718441204387,5.66,144.0,143.95,20.0]
[1718441204768,5.66,144.01,143.95,25.66]
[1718441205185,2.5686,144.05,143.95,25.66]
[1718441205186,18.9857,144.06,143.96,105.66]
[1718441205485,5.66,144.02,143.97,20.17]
[1718441205786,5.66,144.02,143.97,20.51]
[1718441206767,64.7412,144.06,143.97,20.51]
[1718441206969,42.1012,144.06,143.97,20.51]
[1718441207176,5.66,144.02,143.97,20.51]
[1718441213876,5.66,144.01,143.97,20.51]
[1718441214090,5.66,144.01,143.97,0.17]
[1718441214270,5.66,144.0,143.96,0.51]
[1718441214979,5.66,144.0,143.96,0.34]
[1718441215174,5.66,143.99,143.96,0.17]
[1718441216209,5.66,143.99,143.95,20.0]
[1718441217113,5.66,143.98,143.95,20.0]
[1718441218300,5.66,143.98,143.92,17.84562984]
[1718441218301,5.66,143.97,143.92,6.4599]
[1718441218498,2.5695,144.0,143.9,123.44261846]
[1718441218499,5.66,143.96,143.9,123.44261846]
[1718441218801,5.66,143.97,143.91,5.66]
[1718441219508,5.66,143.97,143.92,20.17]
[1718441219675,18.037,144.01,143.92,20.34]
[1718441219875,5.66,143.97,143.92,20.34]
[1718441220109,5.66,143.97,143.93,20.0]
[1718441220294,5.66,143.97,143.92,0.34]
[1718441224522,15.4677,144.01,143.93,0.34]
[1718441224802,5.66,143.99,143.95,0.17]
[1718441225022,6.1397,144.03,143.95,0.34]
[1718441225235,18.3089,144.05,143.96,6.0]
[1718441225510,18.3089,144.05,143.97,20.17]
[1718441225682,5.66,144.02,143.97,20.17]
[1718441226012,18.3089,144.05,143.97,20.17]
[1718441226227,5.66,144.02,143.97,20.17]
[1718441226381,5.66,144.02,143.98,0.34]
[1718441228096,5.66,144.03,143.98,0.34]
[1718441230726,15.7404,144.05,143.98,0.34]
[1718441230922,5.66,144.03,143.98,0.34]
[1718441233926,5.66,144.01,143.98,0.17]
[1718441234122,5.66,144.0,143.97,0.17]
[1718441234324,5.66,144.0,143.97,0.51]
[1718441234533,5.66,143.98,143.94,6.2557]
[1718441234720,5.66,143.98,143.92,122.155]
[1718441235409,5.66,143.98,143.92,22.155]
[1718441236622,5.66,143.98,143.93,20.0]
[1718441236818,5.66,143.98,143.94,0.51]
[1718441237715,7.7075,144.02,143.94,0.51]
[1718441237716,5.66,144.0,143.95,0.17]
[1718441237923,5.66,144.0,143.95,20.17]
[1718441238116,2.5696,143.99,143.95,20.17]
[1718441238422,22.94845713,144.05,143.92,16.495]
[1718441238423,5.66,143.97,143.92,16.495]
[1718441238617,5.66,143.96,143.93,20.17]
[1718441239014,5.66,143.97,143.93,20.17]
[1718441242227,15.4158,144.01,143.93,20.17]
[1718441242439,5.66,143.97,143.93,20.17]
[1718441245249,5.66,143.96,143.93,20.17]
[1718441246147,5.66,143.97,143.93,20.17]
[1718441249339,5.66,143.99,143.94,5.83]
[1718441249517,5.66,144.0,143.95,20.51]
[1718441250142,23.4464,144.05,143.96,0.17]
[1718441250321,5.66,144.02,143.96,5.83]
[1718441250526,5.66,144.02,143.97,20.51]
[1718441251034,5.66,144.01,143.97,20.51]
[1718441251233,5.66,144.01,143.97,0.51]
[1718441251440,5.66,144.0,143.97,0.17]
[1718441251644,5.66,144.0,143.96,0.34]
[1718441252024,5.66,144.01,143.97,0.17]
[1718441253640,15.7404,144.05,143.95,20.0]
[1718441253641,7.7084,144.0,143.95,20.0]
[1718441253944,5.66,143.98,143.93,20.0]
[1718441254240,0.66666668,143.97,143.93,20.0]
[1718441255040,0.66666668,143.97,143.94,0.34]
[1718441258250,6.32666668,143.97,143.93,20.0]
[1718441258919,5.66,143.96,143.93,20.0]
[1718441259328,5.66,143.94,143.86,122.948]
[1718441259626,5.66,143.93,143.87,5.66]
[1718441260047,42.1219,143.97,143.86,122.948]
[1718441260048,5.66,143.94,143.88,5.66]
[1718441260431,18.9914,143.97,143.86,122.948]
[1718441260432,6.6528,143.96,143.86,22.948]
[1718441260622,5.66,143.92,143.86,22.948]
[1718441260828,5.66,143.92,143.86,28.608]
[1718441262171,5.66,143.93,143.87,5.66]
[1718441262558,5.66,143.93,143.88,20.17]
[1718441270234,5.66,143.93,143.88,0.17]
[1718441270436,5.66,143.93,143.88,0.51]
[1718441271059,5.66,143.92,143.88,0.51]
[1718441272431,5.66,143.92,143.88,0.34]
[1718441272735,5.66,143.92,143.88,0.17]
[1718441274759,6.6528,143.96,143.87,25.66]
[1718441274968,5.66,143.93,143.88,0.51]
[1718441276464,7.21526578,143.99,143.89,0.17]
[1718441276763,5.66,143.96,143.9,5.66]
[1718441277073,5.66,143.95,143.91,20.0]
[1718441277760,5.66,143.95,143.9,20.0]
[1718441277954,5.66,143.95,143.91,0.83258893]
[1718441280350,5.1394,143.99,143.91,28.27588893]
[1718441280576,2.5691,144.02,143.93,0.17]
[1718441280890,15.027,144.04,143.93,0.17]
[1718441280891,15.027,144.04,143.95,5.66]
[1718441281167,15.027,144.04,143.96,1.38873351]
[1718441281372,17.5958,144.04,143.96,22.44783351]
[1718441281576,5.66,144.02,143.97,21.38863705]
[1718441282945,5.66,144.02,143.98,0.51]
[1718441283467,2.5688,144.04,143.98,0.51]
[1718441283770,5.66,144.03,143.98,0.51]
[1718441284158,2.5688,144.04,143.98,0.51]
[1718441284358,5.66,144.02,143.98,0.51]
[1718441285167,2.5688,144.04,143.98,0.51]
[1718441285383,23.1175,144.05,143.99,0.17]
[1718441285384,5.66,144.05,143.99,0.17]
[1718441285566,2.5681,144.08,144.0,5.66]
[1718441285770,5.66,144.06,144.01,20.51]
[1718441286150,2.5682,144.07,144.01,20.17]
[1718441286151,5.66,144.05,144.01,20.17]
[1718441286372,5.66,144.05,144.0,20.0]
[1718441286873,5.66,144.05,144.01,0.51]
[1718441287858,2.5681,144.08,144.01,0.51]
[1718441288172,38.5132,144.1,144.01,15.9091]
[1718441288474,15.4039,144.14,144.03,5.83]
[1718441288669,5.66,144.1,144.04,26.0]
[1718441288869,5.66,144.1,144.04,6.0]
[1718441289064,5.66,144.1,144.05,20.0]
[1718441289371,15.4039,144.12,144.05,20.0]
[1718441289372,5.66,144.09,144.05,20.0]
[1718441289568,5.66,144.09,144.04,0.34]
[1718441289569,5.66,144.09,144.04,20.34]
[1718441289772,38.0431,144.13,144.04,20.34]
[1718441289976,2.5673,144.12,144.05,0.17]
[1718441290153,5.66,144.1,144.05,0.17]
[1718441290582,2.5675,144.11,144.05,0.17]
[1718441290764,5.66,144.1,144.05,0.17]
[1718441292592,5.66,144.07,144.04,20.0]
[1718441292758,5.66,144.07,144.03,20.0]
[1718441293393,5.66,144.06,144.03,20.0]
[1718441293597,5.66,144.05,144.03,20.0]
[1718441295679,5.66,144.04,144.01,15.3991]
[1718441295981,5.66,144.03,144.01,15.3991]
[1718441296182,5.66,144.04,144.01,15.3991]
[1718441298081,5.66,144.05,144.01,15.3991]
[1718441298489,2.5681,144.08,144.01,15.3991]
[1718441298788,5.66,144.05,144.01,15.3991]
[1718441299295,5.66,144.04,144.01,15.3991]
[1718441299784,5.66,144.06,144.01,15.3991]
[1718441300160,5.66,144.06,144.02,0.17]
[1718441302187,5.66,144.05,144.01,15.3991]
[1718441302876,5.66,144.04,144.01,15.3991]
[1718441305969,5.66,144.05,144.01,15.3991]
[1718441306376,5.66,144.06,144.01,15.3991]
[1718441307877,5.66,144.05,144.01,15.3991]
[1718441310979,5.66,144.06,144.01,15.3991]
[1718441314386,5.66,144.05,144.01,15.3991]
[1718441314696,5.66,144.02,143.97,15.0282]
[1718441314866,5.66,144.01,143.97,15.0282]
[1718441315062,5.66,144.01,143.98,20.0]
[1718441315267,22.64,144.06,143.97,15.0282]
[1718441315268,5.66,144.0,143.97,15.0282]
[1718441318302,5.66,144.01,143.97,15.0282]
[1718441318678,2.5686,144.05,143.97,15.0282]
[1718441318877,30.3452,144.06,143.98,26.0]
[1718441318878,5.66,144.03,143.98,26.0]
[1718441319085,5.66,144.05,143.99,6.0]
[1718441319288,5.66,144.05,144.0,20.34]
[1718441319977,5.66,144.06,144.0,26.0]
[1718441320377,2.5682,144.07,144.0,20.34]
[1718441320599,5.66,144.05,144.0,0.34]
[1718441320790,5.66,144.05,144.0,20.34]
[1718441321992,5.66,144.05,144.01,1.55611959]
[1718441322242,5.66,144.05,144.02,0.17]
[1718441322507,5.66,144.05,144.01,0.17]
[1718441323314,5.66,144.04,144.01,0.17]
[1718441323805,5.66,144.04,144.0,20.0]
[1718441323991,5.66,144.04,143.99,20.34]
[1718441324198,23.1123,144.08,143.99,26.17]
[1718441324509,5.66,144.05,143.99,26.17]
[1718441328988,5.66,144.05,143.99,20.51]
[1718441329307,5.66,144.04,143.99,0.51]
[1718441330618,5.66,144.03,143.99,0.51]
[1718441330797,5.66,144.03,143.99,0.17]
[1718441331721,5.66,144.02,143.98,20.0]
[1718441333027,7.7048,144.07,143.98,20.0]
[1718441333199,5.66,144.04,143.98,25.66]
[1718441333608,7.7048,144.07,143.98,25.66]
[1718441333827,5.66,144.04,143.99,0.51]
[1718441335518,5.66,144.02,143.99,0.17]
[1718441335713,5.66,144.02,143.98,20.0]
[1718441339490,30.3452,144.06,143.98,20.0]
[1718441341324,25.2085,144.06,143.98,20.0]
[1718441342436,22.64,144.06,143.98,20.0]
[1718441342923,5.66,144.04,143.99,0.17]
[1718441343130,5.66,144.04,143.99,0.51]
[1718441343524,2.5681,144.08,143.99,0.51]
[1718441343525,2.5682,144.07,143.99,0.51]
[1718441343833,25.6803,144.08,143.99,0.51]
[1718441344009,5.66,144.04,143.99,0.51]
[1718441346134,2.5682,144.07,143.99,0.51]
[1718441346335,7.21469535,144.09,144.02,0.17]
[1718441346510,5.66,144.07,144.02,20.68]
[1718441347000,5.66,144.07,144.03,0.78252589]
[1718441349624,5.66,144.07,144.02,20.68]
[1718441349925,5.66,144.05,144.02,20.17]
[1718441350122,5.66,144.05,144.02,20.0]
[1718441350738,5.66,144.06,144.02,20.0]
[1718441354337,7.7033,144.1,144.01,15.7384]
[1718441354338,100.0,144.1,144.01,15.7384]
[1718441354529,5.66,144.02,143.98,15.7384]
[1718441354730,5.66,144.02,143.99,20.0]
[1718441355230,5.66,144.02,143.98,15.7384]
[1718441356133,0.51,144.09,143.98,21.3984]
[1718441356134,5.66,144.04,143.98,21.3984]
[1718441356432,5.66,144.05,143.99,5.66]
[1718441356838,5.66,144.04,144.0,20.51]
[1718441357134,5.66,144.04,144.01,20.0]
[1718441357330,5.66,144.04,144.0,0.51]
[1718441357714,23.1111,144.09,144.0,0.51]
[1718441357715,5.66,144.05,144.0,0.51]
[1718441362038,5.66,144.04,144.0,0.51]
[1718441364256,5.66,144.05,144.0,0.51]
[1718441365138,5.66,144.06,144.0,6.17]
[1718441365341,5.66,144.06,144.01,20.0]
[1718441366031,5.66,144.05,144.01,20.0]
[1718441366338,5.66,144.05,144.0,20.51]
[1718441368444,5.66,144.05,144.01,1.3847066]
[1718441370139,2.5679,144.09,144.01,1.3847066]
[1718441370344,5.66,144.08,144.02,6.17]
[1718441370548,5.66,144.08,144.03,21.38451431]
[1718441371128,5.66,144.08,144.03,1.38451431]
[1718441373652,2.5678,144.09,144.03,1.38451431]
[1718441373861,5.66,144.08,144.03,1.38451431]
[1718441374451,7.7031,144.1,144.03,1.38451431]
[1718441374951,7.7031,144.1,144.04,0.51]
[1718441374952,5.66,144.09,144.04,0.51]
[1718441375149,5.66,144.09,144.04,21.89432208]
[1718441375533,5.66,144.09,144.04,1.89432208]
[1718441375843,5.66,144.09,144.04,21.89432208]
[1718441376521,17.973,144.11,144.05,0.64293612]
[1718441376522,2.5674,144.11,144.05,0.64293612]
[1718441376722,5.66,144.09,144.06,0.51]
[1718441376946,5.66,144.09,144.05,0.17]
[1718441377129,7.7025,144.11,144.05,0.17]
[1718441377458,5.66,144.09,144.05,0.17]
[1718441382271,5.66,144.08,144.04,20.51]
[1718441382759,23.1058,144.12,144.04,20.51]
[1718441382959,5.66,144.08,144.04,20.51]
[1718441383837,5.66,144.09,144.04,20.51]
[1718441394567,5.66,144.06,144.04,20.0]
[1718441397748,15.4055,144.11,144.04,20.0]
[1718441398072,5.66,144.07,144.04,20.0]
[1718441398772,68.58190693,144.13,144.04,20.0]
[1718441398976,5.66,144.09,144.04,20.0]
[1718441399148,48.04460693,144.13,144.04,20.0]
[1718441399344,5.66,144.09,144.04,20.0]
[1718441399777,5.66,144.1,144.04,20.0]
[1718441399965,5.66,144.1,144.04,25.66]
[1718441401853,5.66,144.1,144.05,0.68]
[1718441402357,5.66,144.09,144.05,0.68]
[1718441402775,30.53890693,144.13,144.05,0.68]
[1718441402954,5.66,144.09,144.05,0.68]
[1718441404056,38.24030693,144.13,144.05,0.68]
[1718441404352,5.66,144.09,144.05,0.68]
[1718441404659,60.88030693,144.13,144.04,20.0]